fUSD/lending_fUSD_20260115
["ID","MTS","AMOUNT","RATE_DAILY","PERIOD"]
[401993196,1768449041194,-243.40767629,0.00015722,2]
[401993198,1768449041204,-151.0,0.00015722,2]
[401993200,1768449041215,-151.0,0.00015722,2]
[401993202,1768449041225,-151.0,0.00015722,2]
[401993204,1768449041235,-151.0,0.00015722,2]
[401993206,1768449041246,-151.0,0.00015722,2]
[401993208,1768449041257,-151.0,0.00015722,2]
[401993210,1768449041266,-151.0,0.00015722,2]
[401993212,1768449041275,-151.0,0.00015722,2]
[401993214,1768449041285,-151.0,0.00015722,2]
[401993216,1768449041293,-151.0,0.00015722,2]
[401993218,1768449041302,-151.0,0.00015722,2]
[401993220,1768449041311,-500.0,0.00015731,2]
[401993222,1768449041321,-500.0,0.00015731,2]
[401993224,1768449041330,-646.15906371,0.00015731,2]
[401993226,1768449041339,-500.0,0.00015731,2]
[401993228,1768449041350,-500.0,0.00015731,2]
[401993230,1768449041359,-449.12408341,0.00015731,2]
[401993232,1768449041368,-451.33399256,0.00015731,2]
[401993234,1768449041377,-500.0,0.00015731,2]
[401993236,1768449041386,-500.0,0.00015731,2]
[401993238,1768449041396,-500.0,0.00015731,2]
[401993240,1768449041405,-500.0,0.00015731,2]
[401993242,1768449041415,-500.0,0.00015731,2]
[401993244,1768449041424,-500.0,0.00015731,2]
[401993246,1768449041433,-500.0,0.00015731,2]
[401993248,1768449041442,-500.0,0.00015731,2]
[401993250,1768449041452,-500.0,0.00015731,2]
[401993252,1768449041461,-500.0,0.00015731,2]
[401993254,1768449041470,-500.0,0.00015731,2]
[401993256,1768449041479,-500.0,0.00015731,2]
[401993258,1768449041488,-500.0,0.00015731,2]
[401993260,1768449041497,-500.0,0.00015731,2]
[401993262,1768449041506,-500.0,0.00015731,2]
[401993264,1768449041516,-500.0,0.00015731,2]
[401993266,1768449041525,-500.0,0.00015731,2]
[401993268,1768449041534,-500.0,0.00015731,2]
[401993270,1768449041543,-500.0,0.00015731,2]
[401993272,1768449041552,-239.60523238,0.00015731,2]
[401993274,1768449041561,-500.0,0.00015731,2]
[401993276,1768449041571,-500.0,0.00015731,2]
[401993278,1768449041580,-500.0,0.00015731,2]
[401993280,1768449041589,-500.0,0.00015731,2]
[401993282,1768449041599,-500.0,0.00015731,2]
[401993284,1768449041608,-500.0,0.00015731,2]
[401993286,1768449041617,-500.0,0.00015731,2]
[401993288,1768449041626,-500.0,0.00015731,2]
[401993290,1768449041635,-500.0,0.00015731,2]
[401993292,1768449041644,-500.0,0.00015731,2]
[401993294,1768449041653,-500.0,0.00015731,2]
[401993296,1768449041662,-500.0,0.00015731,2]
[401993298,1768449041672,-344.53084108,0.00015731,2]
[401993300,1768449041681,-156.75586223,0.00015731,2]
[401993302,1768449041690,-341.15949194,0.00015731,2]
[401993304,1768449041700,-500.0,0.00015731,2]
[401993306,1768449041709,-155.0,0.00015731,2]
[401993308,1768449041718,-500.0,0.00015731,2]
[401993310,1768449041728,-500.0,0.00015731,2]
[401993312,1768449041737,-516.26,0.00015731,2]
[401993314,1768449041747,-500.0,0.00015731,2]
[401993316,1768449041756,-500.0,0.00015731,2]
[401993317,1768449041766,-500.0,0.00015731,2]
[401993319,1768449041776,-500.0,0.00015731,2]
[401993321,1768449041785,-500.0,0.00015731,2]
[401993323,1768449041796,-500.0,0.00015731,2]
[401993326,1768449041806,-500.0,0.00015731,2]
[401993328,1768449041816,-500.0,0.00015731,2]
[401993330,1768449041825,-500.0,0.00015731,2]
[401993332,1768449041834,-500.0,0.00015731,2]
[401993334,1768449041843,-512.6608624,0.00015731,2]
[401993336,1768449041852,-500.0,0.00015731,2]
[401993337,1768449041861,-500.0,0.00015731,2]
[401993339,1768449041870,-507.4251083,0.00015731,2]
[401993341,1768449041880,-500.0,0.00015731,2]
[401993343,1768449041889,-500.0,0.00015731,2]
[401993345,1768449041899,-500.0,0.00015731,2]
[401993347,1768449041908,-500.0,0.00015731,2]
[401993349,1768449041917,-1000.0,0.00015732,2]
[401993351,1768449041927,-500.0,0.00015831,2]
[401993353,1768449041936,-500.0,0.00015831,2]
[401993355,1768449041945,-511.63328925,0.00015831,2]
[401993357,1768449041954,-500.0,0.00015831,2]
[401993359,1768449041963,-500.0,0.00015831,2]
[401993361,1768449041972,-444.66179987,0.00015831,2]
[401993363,1768449041981,-500.0,0.00015831,2]
[401993365,1768449041991,-525.51243154,0.00015831,2]
[401993367,1768449042000,-500.0,0.00015831,2]
[401993369,1768449042009,-500.0,0.00015831,2]
[401993371,1768449042018,-508.83778667,0.00015831,2]
[401993374,1768449042028,-500.0,0.00015831,2]
[401993376,1768449042038,-500.0,0.00015831,2]
[401993378,1768449042047,-500.0,0.00015831,2]
[401993379,1768449042056,-486.66435485,0.00015831,2]
[401993381,1768449042065,-500.0,0.00015831,2]
[401993383,1768449042074,-500.0,0.00015831,2]
[401993385,1768449042083,-510.1418066,0.00015831,2]
[401993387,1768449042093,-500.0,0.00015831,2]
[401993389,1768449042102,-505.24437882,0.00015831,2]
[401993391,1768449042111,-500.0,0.00015831,2]
[401993393,1768449042121,-500.0,0.00015831,2]
[401993395,1768449042130,-500.0,0.00015831,2]
[401993397,1768449042139,-500.0,0.00015831,2]
[401993399,1768449042148,-502.25093775,0.00015831,2]
[401993401,1768449042158,-507.55985946,0.00015831,2]
[401993403,1768449042169,-500.0,0.00015831,2]
[401993405,1768449042178,-500.0,0.00015932,2]
[401993407,1768449042187,-500.0,0.00015932,2]
[401993409,1768449042197,-1000.0,0.00015933,2]
[401993411,1768449042206,-1000.0,0.00015933,2]
[401993413,1768449042216,-539.209,0.00015933,2]
[401993415,1768449042225,-1000.0,0.00015933,2]
[401993417,1768449042236,-1000.0,0.00015933,2]
[401993419,1768449042246,-1000.0,0.00015933,2]
[401993421,1768449042255,-1000.0,0.00015933,2]
[401993423,1768449042264,-1000.0,0.00015933,2]
[401993425,1768449042274,-1000.0,0.00015933,2]
[401993427,1768449042283,-489.211,0.00015933,2]
[401993429,1768449042292,-468.64,0.00015996,2]
[401993431,1768449042301,-500.0,0.00015999,2]
[401993433,1768449042309,-551.83023748,0.00015999,2]
[401993435,1768449042319,-500.0,0.00016005,2]
[401993437,1768449042328,-1000.0,0.00016135,2]
[401993439,1768449042339,-200.0,0.00016181,2]
[401993441,1768449042349,-468.64,0.0001627,2]
[401993443,1768449042358,-200.0,0.0001627,2]
[401993445,1768449042367,-200.0,0.0001627,2]
[401993447,1768449042376,-500.0,0.0001627,2]
[401993449,1768449042386,-500.0,0.00016279,2]
[401993451,1768449042396,-500.0,0.00016372,2]
[401993453,1768449042405,-500.0,0.00016391,2]
[401993455,1768449042415,-600.68123158,0.00016438,2]
[401993457,1768449042424,-197.94965886,0.00016449,2]
[401993459,1768449042433,-22178.29116375,0.00016473,2]
[401993461,1768449042443,-500.0,0.00016522,2]
[401993463,1768449042452,-468.64,0.00016544,2]
[401993465,1768449042463,-500.0,0.00016553,2]
[401993467,1768449042472,-22471.56540908,0.00016561,2]
[401993469,1768449042482,-468.6757473,0.00016818,2]
[401993471,1768449042491,-200.0,0.00016818,2]
[401993473,1768449042500,-200.0,0.00016818,2]
[401993474,1768449042510,-500.0,0.00016818,2]
[401993475,1768449042519,-500.0,0.00016827,2]
[401993476,1768449042528,-500.0,0.00016865,2]
[401993477,1768449042537,-1557.98457912,0.00016904,2]
[401993478,1768449042546,-480.0,0.00016966,2]
[401993479,1768449042555,-578.20924308,0.00016967,2]
[401993480,1768449042564,-620.0,0.00016967,2]
[401993481,1768449042574,-500.0,0.00016967,2]
[401993482,1768449042583,-500.0,0.00016967,2]
[401993483,1768449042592,-721.12765535,0.00016967,2]
[401993484,1768449042601,-500.0,0.00016967,2]
[401993485,1768449042611,-500.0,0.00016967,2]
[401993486,1768449042620,-500.0,0.00016967,2]
[401993487,1768449042629,-500.0,0.00016967,2]
[401993488,1768449042639,-500.0,0.00016967,2]
[401993489,1768449042648,-500.0,0.00016967,2]
[401993490,1768449042657,-500.0,0.00016967,2]
[401993491,1768449042666,-500.0,0.00016967,2]
[401993493,1768449042676,-1239.0,0.00016967,2]
[401993494,1768449042685,-500.0,0.00016967,2]
[401993496,1768449042694,-500.0,0.00016967,2]
[401993498,1768449042704,-500.0,0.00016967,2]
[401993500,1768449042714,-500.0,0.00016967,2]
[401993502,1768449042723,-500.0,0.00016967,2]
[401993504,1768449042733,-574.12855637,0.00016967,2]
[401993506,1768449042744,-500.0,0.00016967,2]
[401993508,1768449042754,-500.0,0.00016967,2]
[401993510,1768449042764,-500.0,0.00016967,2]
[401993512,1768449042773,-500.0,0.00016967,2]
[401993514,1768449042782,-250.0,0.00016967,2]
[401993516,1768449042792,-500.0,0.00016967,2]
[401993518,1768449042801,-500.0,0.00016967,2]
[401993520,1768449042812,-250.0,0.00016967,2]
[401993522,1768449042822,-500.0,0.00016967,2]
[401993524,1768449042831,-300.63441972,0.00016967,2]
[401993526,1768449042841,-250.0,0.00016967,2]
[401993528,1768449042850,-250.0,0.00016967,2]
[401993530,1768449042860,-1000.0,0.00016967,2]
[401993532,1768449042869,-250.0,0.00016967,2]
[401993534,1768449042882,-1000.0,0.00016967,2]
[401993536,1768449042892,-250.0,0.00016967,2]
[401993538,1768449042903,-1000.0,0.00016967,2]
[401993540,1768449042912,-250.0,0.00016967,2]
[401993542,1768449042921,-1000.0,0.00016967,2]
[401993544,1768449042931,-250.0,0.00016967,2]
[401993546,1768449042940,-1000.0,0.00016967,2]
[401993549,1768449042950,-250.0,0.00016967,2]
[401993551,1768449042960,-1000.0,0.00016967,2]
[401993553,1768449042969,-250.0,0.00016967,2]
[401993555,1768449042978,-1000.0,0.00016967,2]
[401993557,1768449042988,-250.0,0.00016967,2]
[401993559,1768449042997,-250.0,0.00016967,2]
[401993561,1768449043006,-1000.0,0.00016967,2]
[401993563,1768449043015,-500.0,0.00016967,2]
[401993566,1768449043024,-250.0,0.00016967,2]
[401993568,1768449043033,-250.0,0.00016967,2]
[401993571,1768449043042,-1000.0,0.00016967,2]
[401993574,1768449043051,-500.0,0.00016967,2]
[401993577,1768449043061,-250.0,0.00016967,2]
[401993579,1768449043070,-250.0,0.00016967,2]
[401993581,1768449043079,-500.0,0.00016967,2]
[401993583,1768449043088,-1000.0,0.00016967,2]
[401993585,1768449043097,-500.0,0.00016967,2]
[401993587,1768449043106,-250.0,0.00016967,2]
[401993589,1768449043115,-1000.0,0.00016967,2]
[401993591,1768449043125,-174.61919141,0.00016967,2]
[401993593,1768449043134,-500.0,0.00016967,2]
[401993595,1768449043145,-250.0,0.00016967,2]
[401993598,1768449043154,-500.0,0.00016967,2]
[401993600,1768449043164,-250.0,0.00016967,2]
[401993602,1768449043177,-500.0,0.00016967,2]
[401993604,1768449043187,-250.0,0.00016967,2]
[401993607,1768449043196,-500.0,0.00016967,2]
[401993610,1768449043205,-250.0,0.00016967,2]
[401993614,1768449043216,-500.0,0.00016967,2]
[401993617,1768449043226,-250.0,0.00016967,2]
[401993620,1768449043235,-500.0,0.00016967,2]
[401993623,1768449043244,-250.0,0.00016967,2]
[401993626,1768449043253,-250.0,0.00016967,2]
[401993628,1768449043262,-500.0,0.00016967,2]
[401993630,1768449043271,-322.6107,0.00016967,2]
[401993632,1768449043282,-250.0,0.00016967,2]
[401993634,1768449043291,-250.0,0.00016967,2]
[401993636,1768449043299,-250.0,0.00016967,2]
[401993638,1768449043309,-250.0,0.00016967,2]
[401993640,1768449043317,-250.0,0.00016967,2]
[401993642,1768449043326,-250.0,0.00016967,2]
[401993644,1768449043336,-250.0,0.00016967,2]
[401993647,1768449043345,-250.0,0.00016967,2]
[401993649,1768449043355,-250.0,0.00016967,2]
[401993651,1768449043364,-250.0,0.00016967,2]
[401993653,1768449043373,-250.0,0.00016967,2]
[401993655,1768449043382,-250.0,0.00016967,2]
[401993657,1768449043391,-250.0,0.00016967,2]
[401993659,1768449043401,-250.0,0.00016967,2]
[401993661,1768449043410,-250.0,0.00016967,2]
[401993663,1768449043419,-250.0,0.00016967,2]
[401993665,1768449043428,-250.0,0.00016967,2]
[401993667,1768449043437,-250.0,0.00016967,2]
[401993669,1768449043446,-250.0,0.00016967,2]
[401993671,1768449043456,-250.0,0.00016967,2]
[401993673,1768449043465,-250.0,0.00016967,2]
[401993675,1768449043475,-250.0,0.00016967,2]
[401993677,1768449043484,-250.0,0.00016974,2]
[401993679,1768449043495,-500.0,0.00017101,2]
[401993681,1768449043504,-2500.0,0.00017193,2]
[401993683,1768449043514,-193.53613534,0.00017193,2]
[401993685,1768449043523,-250.0,0.00017193,2]
[401993706,1768449043708,-300.0,0.00017194,2]
[401993708,1768449043718,-600.0,0.00017194,2]
[401993710,1768449043728,-300.0,0.00017194,2]
[401993712,1768449043737,-150.25740556,0.00017194,2]
[401993714,1768449043747,-5827.0,0.00017211,2]
[401993716,1768449043756,-197.94965886,0.00017266,2]
[401993718,1768449043765,-200.0,0.00017366,2]
[401993720,1768449043774,-200.0,0.00017366,2]
[401993722,1768449043783,-500.0,0.00017366,2]
[401993724,1768449043793,-503.75832965,0.00017375,2]
[401993728,1768449043802,-2000.0,0.000175,2]
[401993730,1768449043811,-4111.54595403,0.00017504,2]
[401993732,1768449043821,-7253.25442002,0.00017504,2]
[401993734,1768449043831,-10850.43482369,0.00017504,2]
[401993736,1768449043840,-22178.29116375,0.00017514,2]
[401993738,1768449043849,-595.37131296,0.00017515,2]
[401993740,1768449043859,-181.08010149,0.00017515,2]
[401993742,1768449043869,-503.0,0.00017534,2]
[401993744,1768449043878,-22471.56540908,0.00017591,2]
[401993746,1768449043887,-16403.02037776,0.0001764,2]
[401993748,1768449043896,-6186.42761565,0.00017647,2]
[401993750,1768449043906,-3995.0,0.000177,2]
[401993752,1768449043915,-4226.49205715,0.00017716,2]
[401993754,1768449043925,-3192.17789557,0.000178,2]
[401993756,1768449043935,-14681.0169,0.00017804,2]
[401993758,1768449043944,-5914.9,0.00017808,2]
[401993760,1768449043954,-500.0,0.00017899,2]
[401993762,1768449043964,-108020.1761521,0.000179,2]
[401993764,1768449043973,-10000.0,0.000179,2]
[401993766,1768449043982,-1046.66814581,0.000179,2]
[401993768,1768449043991,-1796.82086517,0.000179,2]
[401993770,1768449044000,-313.26178515,0.000179,2]
[401993772,1768449044009,-2686.28553489,0.000179,2]
[401993774,1768449044018,-207.07990023,0.000179,2]
[401993776,1768449044027,-2328.21062247,0.000179,2]
[401993778,1768449044036,-203.81812262,0.00017914,2]
[401993780,1768449044045,-200.0,0.00017914,2]
[401993782,1768449044054,-500.0,0.00017914,2]
[401993784,1768449044063,-736.0,0.00017973,2]
[401993786,1768449044072,-236.0,0.00017973,2]
[401993788,1768449044081,-150.0,0.00017973,2]
[401993790,1768449044091,-602.14779637,0.00017982,2]
[401993792,1768449044100,-602.14779637,0.0001799,2]
[401993794,1768449044109,-671.54631188,0.00017991,2]
[401993796,1768449044118,-181.10862955,0.00017991,2]
[401993798,1768449044128,-459.27012628,0.00017991,2]
[401993800,1768449044137,-228.66710233,0.00017991,2]
[401993802,1768449044147,-500.0,0.00017991,2]
[401993804,1768449044156,-590.02737347,0.00017991,2]
[401993806,1768449044166,-300.0,0.00017991,2]
[401993808,1768449044178,-913533.0984269,0.00017992,2]
[401993810,1768449044187,-5654.7110384,0.00017992,2]
[401993812,1768449044196,-151.0,0.00017992,2]
[401993814,1768449044205,-151.0,0.00017992,2]
[401993816,1768449044214,-151.0,0.00017992,2]
[401993818,1768449044223,-151.0,0.00017992,2]
[401993820,1768449044233,-151.0,0.00017992,2]
[401993822,1768449044245,-151.0,0.00017992,2]
[401993824,1768449044254,-185.539531,0.00017992,2]
[401993826,1768449044263,-151.0,0.00017992,2]
[401993828,1768449044273,-151.0,0.00017992,2]
[401993830,1768449044282,-520.9689088,0.00017999,2]
[401993832,1768449044291,-152.27797605,0.00017999,2]
[401993834,1768449044300,-2362292.02743167,0.00018,2]
[401993836,1768449044309,-151.0,0.00018,2]
[401993838,1768449044318,-294.8443604,0.00018,2]
[401993840,1768449044327,-151.0,0.00018,2]
[401993842,1768449044336,-151.0,0.00018,2]
[401993844,1768449044345,-151.0,0.00018,2]
[401993846,1768449044354,-151.0,0.00018,2]
[401993848,1768449044363,-151.0,0.00018,2]
[401993850,1768449044372,-151.0,0.00018,2]
[401993852,1768449044381,-155.346848,0.00018,2]
[401993853,1768449044391,-153.18711,0.00018,2]
[401993855,1768449044400,-7554.64973287,0.00018003,2]
[401993857,1768449044409,-495.15,0.00018034,2]
[401993859,1768449044419,-617.40005154,0.00018063,2]
[401993861,1768449044428,-227.45937162,0.00018063,2]
[401993863,1768449044436,-166.67,0.0001811,2]
[401993865,1768449044446,-1000.0,0.00018152,2]
[401993867,1768449044455,-642.94,0.00018336,2]
[401993869,1768449044464,-1239.0,0.00018336,2]
[401993871,1768449044473,-334.5472959,0.00018336,2]
[401993873,1768449044482,-2068.838518,0.00018404,2]
[401993875,1768449044491,-500.0,0.00018462,2]
[401993877,1768449044501,-153.86121834,0.00018471,2]
[401993879,1768449044510,-22178.29116375,0.00018555,2]
[401993881,1768449044518,-1000.0,0.00018581,2]
[401993883,1768449044527,-640.24385345,0.00018611,2]
[401993885,1768449044536,-22471.56540908,0.00018621,2]
[401993887,1768449044545,-1781.0,0.0001863,2]
[401993889,1768449044554,-166.66,0.00018685,2]
[401993891,1768449044563,-210.47,0.0001883,2]
[401993893,1768449044572,-495.15,0.00018854,2]
[401993895,1768449044581,-150.0,0.0001891,2]
[401993897,1768449044590,-150.0,0.00018954,2]
[401993899,1768449044599,-102801.94914615,0.00019,2]
[401993901,1768449044607,-500.0,0.0001901,2]
[401993903,1768449044617,-663.93287602,0.00019159,2]
[401993905,1768449044625,-151.0,0.00019178,2]
[401993907,1768449044635,-151.0,0.00019178,2]
[401993909,1768449044643,-154.58529042,0.00019178,2]
[401993911,1768449044652,-1263.0,0.00019178,2]
[401993913,1768449044662,-1263.0,0.00019178,2]
[401993915,1768449044671,-1263.0,0.00019178,2]
[401993917,1768449044680,-1263.0,0.00019178,2]
[401993919,1768449044689,-1263.0,0.00019178,2]
[401993921,1768449044698,-1263.0,0.00019178,2]
[401993923,1768449044707,-1263.0,0.00019178,2]
[401993925,1768449044716,-422.86148081,0.00019178,2]
[401993927,1768449044731,-153.77593758,0.00019178,2]
[401993929,1768449044748,-158.37781232,0.00019178,2]
[401993931,1768449044759,-151.0,0.00019178,2]
[401993934,1768449044769,-151.0,0.00019178,2]
[401993935,1768449044779,-151.0,0.00019178,2]
[401993937,1768449044788,-151.0,0.00019178,2]
[401993939,1768449044799,-151.0,0.00019178,2]
[401993941,1768449044808,-151.0,0.00019178,2]
[401993943,1768449044819,-151.0,0.00019178,2]
[401993945,1768449044828,-151.0,0.00019178,2]
[401993947,1768449044838,-500.0,0.00019195,2]
[401993949,1768449044847,-395.41512522,0.00019323,2]
[401993951,1768449044857,-839.18915042,0.00019346,2]
[401993953,1768449044866,-166.67,0.00019491,2]
[401993955,1768449044876,-151.0,0.00019596,2]
[401993957,1768449044886,-151.0,0.00019596,2]
[401993959,1768449044895,-22178.29116375,0.00019596,2]
[401993961,1768449044904,-151.0,0.00019598,2]
[401993963,1768449044913,-151.0,0.00019598,2]
[401993965,1768449044922,-166.66,0.00019611,2]
[401993967,1768449044932,-22471.56540908,0.00019651,2]
[401993969,1768449044941,-495.15,0.00019673,2]
[401993971,1768449044951,-666.72878,0.00019705,2]
[401993973,1768449044960,-1239.0,0.00019705,2]
[401993975,1768449044969,-346.92554585,0.00019705,2]
[401993977,1768449044978,-599.60298507,0.00019706,2]
[401993979,1768449044987,-747.8093786,0.00019706,2]
[401993981,1768449044996,-688.49839244,0.00019707,2]
[401993983,1768449045005,-155.0,0.00019799,2]
[401993985,1768449045014,-5358.66656078,0.0002,2]
[401993987,1768449045023,-192.0,0.0002,2]
[401993989,1768449045032,-5914.9,0.00020089,2]
[401993991,1768449045041,-7137.6,0.00020145,2]
[401993993,1768449045050,-1011.39,0.00020145,2]
[401993995,1768449045059,-150.99,0.00020145,2]
[401993997,1768449045068,-1000.0,0.00020169,2]
[401993999,1768449045078,-710.78673829,0.00020246,2]
[401994001,1768449045087,-713.97283296,0.00020255,2]
[401994003,1768449045096,-1261.7365796,0.00020272,2]
[401994005,1768449045105,-237.702889,0.00020273,2]
[401994007,1768449045114,-151.0,0.00020273,2]
[401994009,1768449045123,-170.389952,0.00020273,2]
[401994011,1768449045131,-151.0,0.00020273,2]
[401994013,1768449045140,-151.0,0.00020273,2]
[401994015,1768449045150,-203836.7865529,0.00020273,2]
[401994017,1768449045159,-22178.29116375,0.00020638,2]
[401994019,1768449045168,-22471.56540908,0.00020682,2]
[401994021,1768449045179,-281.531485,0.00020781,2]
[401994023,1768449045188,-45482.1348276,0.00020783,2]
[401994025,1768449045197,-740.38982778,0.00020803,2]
[401994027,1768449045206,-210.47,0.00020922,2]
[401994029,1768449045215,-691.39774486,0.00021074,2]
[401994031,1768449045224,-1239.0,0.00021074,2]
[401994033,1768449045233,-359.76179104,0.00021074,2]
[401994035,1768449045243,-2000.0,0.000212,2]
[401994037,1768449045252,-555.0,0.000213,2]
[401994039,1768449045261,-300.0,0.000213,2]
[401994041,1768449045270,-767.7842514,0.00021351,2]
[401994043,1768449045280,-155.0,0.00021599,2]
[401994045,1768449045289,-22178.29116375,0.00021679,2]
[401994047,1768449045298,-171.48,0.00021682,2]
[401994049,1768449045307,-22471.56540908,0.00021712,2]
[401994052,1768449045317,-158.97281869,0.00021736,2]
[401994054,1768449045327,-796.19226871,0.00021899,2]
[401994056,1768449045336,-175.667185,0.00021918,2]
[401994058,1768449045345,-5000.0,0.00021918,2]
[401994060,1768449045354,-500.0,0.00021998,2]
[401994062,1768449045363,-18512.07100679,0.00022,4]
[401994064,1768449045372,-515.29,0.000221,2]
[401994066,1768449045382,-178.73,0.0002218,2]
[401994068,1768449045392,-1000.0,0.00022186,2]
[401994070,1768449045401,-5914.9,0.0002237,2]
[401994072,1768449045411,-716.97946142,0.00022443,2]
[401994074,1768449045419,-1239.0,0.00022443,2]
[401994076,1768449045428,-373.07297731,0.00022443,2]
[401994077,1768449045437,-621.78829552,0.00022445,2]
[401994080,1768449045447,-915.06858871,0.00022445,2]
[401994082,1768449045456,-825.65138265,0.00022447,2]
[401994083,1768449045465,-841.27,0.00022668,2]
[401994086,1768449045474,-22178.29116375,0.0002272,2]
[401994087,1768449045484,-22471.56540908,0.00022742,2]
[401994090,1768449045493,-1796.82086515,0.0002286,2]
[401994091,1768449045502,-406.0739225,0.00023,2]
[401994093,1768449045511,-210.47,0.00023014,2]
[401994095,1768449045520,-839.18915042,0.0002326,2]
[401994097,1768449045529,-3833.11728248,0.000235,30]
[401994099,1768449045538,-367.0,0.00023715,2]
[401994101,1768449045547,-362.0,0.00023738,2]
[401994103,1768449045556,-22178.29116375,0.00023761,2]
[401994105,1768449045565,-22471.56540908,0.00023772,2]
[401994108,1768449045574,-743.50770149,0.00023812,2]
[401994109,1768449045584,-1239.0,0.00023812,2]
[401994111,1768449045593,-386.87667747,0.00023812,2]
[401994113,1768449045601,-362.0,0.00024074,2]
[401994115,1768449045610,-1000.0,0.00024203,2]
[401994118,1768449045620,-433.17,0.00024225,30]
[401994119,1768449045630,-362.0,0.00024278,2]
[401994121,1768449045639,-395.0,0.00024362,2]
[401994123,1768449045647,-362.0,0.00024397,2]
[401994125,1768449045656,-362.0,0.00024419,2]
[401994127,1768449045665,-362.0,0.00024644,2]
[401994129,1768449045674,-5914.9,0.00024651,2]
[401994131,1768449045683,-151.0,0.00024658,2]
[401994133,1768449045692,-154.087221,0.00024658,2]
[401994135,1768449045701,-1000.0,0.00024658,2]
[401994137,1768449045710,-395.0,0.00024745,2]
[401994139,1768449045719,-710.78673829,0.00024759,2]
[401994141,1768449045728,-151.0,0.000248,7]
[401994143,1768449045738,-151.0,0.000248,7]
[401994145,1768449045747,-151.0,0.000248,7]
[401994147,1768449045756,-151.0,0.000248,7]
[401994149,1768449045765,-145072.390416,0.000248,3]
[401994151,1768449045775,-500.0,0.00024802,2]
[401994153,1768449045788,-22471.56540908,0.00024802,2]
[401994155,1768449045797,-22178.29116375,0.00024802,2]
[401994157,1768449045807,-362.0,0.00024812,2]
[401994159,1768449045816,-30000.0,0.0002482,2]
[401994161,1768449045825,-362.0,0.00024843,2]
[401994163,1768449045834,-362.0,0.00024862,2]
[401994165,1768449045843,-1873.0,0.000249,2]
[401994167,1768449045854,-151.0,0.000249,7]
[401994169,1768449045864,-151.0,0.000249,7]
[401994171,1768449045873,-151.0,0.000249,7]
[401994173,1768449045889,-230.855271,0.000249,7]
[401994175,1768449045906,-151.0,0.000249,7]
[401994177,1768449045915,-95664.8290368,0.000249,3]
[401994335,1768449047153,-7371.956499,0.000249,3]
[401994423,1768449047992,-151.0,0.00019673,2]
[401994447,1768449048205,-252.72373748,0.00020273,2]
[401994449,1768449048222,-81205.89686357,0.000249,3]
[401994454,1768449048256,-1298.03999989,0.000249,3]
[401994456,1768449048270,-134334.55913857,0.000249,3]
[401994459,1768449048281,-1416.77526612,0.000249,3]
[401994906,1768449155780,168.38,0.00025234,120]
[401994907,1768449156226,168.38,0.00027528,120]
[401994908,1768449240143,463.0,0.00029589,120]
[401994918,1768449455222,27000.0,0.000154,3]
[401994919,1768449560809,1559.0,0.00029863,120]
[401994921,1768449734637,4228.34,0.00013753,2]
[401994922,1768449766877,156.81,8.252e-05,2]
[401994923,1768449767102,156.81,8.887e-05,2]
[401994924,1768449767338,156.81,9.522e-05,2]